[Event "*** Titled Tuesday Blitz"]
[Site "Chess.com"]
[Date "2020.12.01"]
[Round "2"]
[White "Manukyan_Artak"]
[Black "j2806"]
[Result "1-0"]
[WhiteElo "2360"]
[BlackElo "2056"]
[TimeControl "180+1"]
[EndTime "10:15:32 PST"]
[Termination "Manukyan_Artak won by resignation"]

1. e4 {[%clk 0:02:58]} 1... c5 {[%clk 0:02:59.9]} 2. Nf3 {[%clk 0:02:57.9]} 2...
d6 {[%clk 0:02:57.5]} 3. Bb5+ {[%clk 0:02:56.5]} 3... Bd7 {[%clk 0:02:57.5]} 4.
Bxd7+ {[%clk 0:02:55.6]} 4... Qxd7 {[%clk 0:02:58.1]} 5. c4 {[%clk 0:02:55.9]}
5... Nc6 {[%clk 0:02:57.9]} 6. Nc3 {[%clk 0:02:55.5]} 6... e5 {[%clk 0:02:57.6]}
7. d3 {[%clk 0:02:54.6]} 7... Nf6 {[%clk 0:02:57.7]} 8. Bg5 {[%clk 0:02:54.4]}
8... Be7 {[%clk 0:02:57.9]} 9. O-O {[%clk 0:02:50.7]} 9... O-O {[%clk
0:02:55.5]} 10. Rb1 {[%clk 0:02:49.7]} 10... a6 {[%clk 0:02:55]} 11. a4 {[%clk
0:02:48.9]} 11... h6 {[%clk 0:02:52.4]} 12. Bxf6 {[%clk 0:02:48.4]} 12... Bxf6
{[%clk 0:02:52.4]} 13. Nd5 {[%clk 0:02:49.3]} 13... Bd8 {[%clk 0:02:49.6]} 14.
Ne1 {[%clk 0:02:37.2]} 14... Ne7 {[%clk 0:02:32.2]} 15. Nxe7+ {[%clk 0:02:35.7]}
15... Bxe7 {[%clk 0:02:31.6]} 16. Nc2 {[%clk 0:02:35.8]} 16... f5 {[%clk
0:02:30.2]} 17. exf5 {[%clk 0:02:33]} 17... Qxf5 {[%clk 0:02:25.5]} 18. Ne3
{[%clk 0:02:33.4]} 18... Qe6 {[%clk 0:02:19]} 19. Nd5 {[%clk 0:02:32]} 19...
Rac8 {[%clk 0:02:18.2]} 20. b4 {[%clk 0:02:30.7]} 20... Rb8 {[%clk 0:01:53.6]}
21. bxc5 {[%clk 0:02:28.6]} 21... dxc5 {[%clk 0:01:52]} 22. Qe2 {[%clk
0:02:28.3]} 22... Bd6 {[%clk 0:01:44.3]} 23. Qe4 {[%clk 0:02:26.9]} 23... Qf5
{[%clk 0:01:28.5]} 24. f3 {[%clk 0:02:23.4]} 24... Qxe4 {[%clk 0:01:26.2]} 25.
fxe4 {[%clk 0:02:21.3]} 25... Rxf1+ {[%clk 0:01:24.8]} 26. Kxf1 {[%clk
0:02:21.2]} 26... Rf8+ {[%clk 0:01:25.4]} 27. Ke2 {[%clk 0:02:20.9]} 27... Rf7
{[%clk 0:01:25.8]} 28. Rb6 {[%clk 0:02:18.5]} 28... Bf8 {[%clk 0:01:18.9]} 29.
Re6 {[%clk 0:02:16.3]} 29... Kh7 {[%clk 0:01:07.3]} 30. Rxe5 {[%clk 0:02:15.4]}
30... Bd6 {[%clk 0:01:03.6]} 31. Rf5 {[%clk 0:02:12.6]} 31... Rxf5 {[%clk
0:00:59.7]} 32. exf5 {[%clk 0:02:12.6]} 32... Bxh2 {[%clk 0:01:00.3]} 33. g4
{[%clk 0:02:11.4]} 33... Be5 {[%clk 0:00:49.9]} 34. Kf3 {[%clk 0:02:10.1]} 34...
Kg8 {[%clk 0:00:43.2]} 35. Ke4 {[%clk 0:02:08.9]} 35... Bd4 {[%clk 0:00:43.1]}
36. Nc7 {[%clk 0:02:07]} 36... Kf7 {[%clk 0:00:37.7]} 37. Ne6 {[%clk 0:02:06.8]}
37... Bf2 {[%clk 0:00:35.9]} 38. Nd8+ {[%clk 0:02:04.2]} 38... Kf6 {[%clk
0:00:34]} 39. Nxb7 {[%clk 0:02:03.7]} 39... Ke7 {[%clk 0:00:34.4]} 40. Kd5
{[%clk 0:02:00.9]} 40... Kf6 {[%clk 0:00:34.4]} 41. Nxc5 {[%clk 0:01:59.8]}
41... Kg5 {[%clk 0:00:33.8]} 42. Ne4+ {[%clk 0:01:59.8]} 42... Kxg4 {[%clk
0:00:34.2]} 43. Nxf2+ {[%clk 0:02:00.7]} 43... Kxf5 {[%clk 0:00:35.1]} 44. c5
{[%clk 0:02:00.4]} 1-0

[Event "*** Titled Tuesday Blitz"]
[Site "Chess.com"]
[Date "2020.12.01"]
[Round "2"]
[White "ARMQUEEN"]
[Black "Aborigen_came"]
[Result "1-0"]
[WhiteElo "2513"]
[BlackElo "2748"]
[TimeControl "180+1"]
[EndTime "10:15:38 PST"]
[Termination "ARMQUEEN won on time"]

1. e4 {[%clk 0:03:00.5]} 1... Nc6 {[%clk 0:02:57.6]} 2. Nf3 {[%clk 0:02:59.2]}
2... Nf6 {[%clk 0:02:52.1]} 3. Nc3 {[%clk 0:02:57.8]} 3... d5 {[%clk 0:02:51.3]}
4. e5 {[%clk 0:02:55.1]} 4... d4 {[%clk 0:02:39.3]} 5. exf6 {[%clk 0:02:43.7]}
5... dxc3 {[%clk 0:02:38.7]} 6. fxg7 {[%clk 0:02:44]} 6... cxd2+ {[%clk
0:02:37.8]} 7. Bxd2 {[%clk 0:02:44.9]} 7... Bxg7 {[%clk 0:02:37.4]} 8. c3 {[%clk
0:02:44.9]} 8... Qd5 {[%clk 0:02:32.3]} 9. Bf4 {[%clk 0:02:37.3]} 9... Qxd1+
{[%clk 0:02:22.7]} 10. Rxd1 {[%clk 0:02:36.5]} 10... e5 {[%clk 0:02:22.8]} 11.
Bg3 {[%clk 0:02:36.1]} 11... Be6 {[%clk 0:02:20.2]} 12. Bb5 {[%clk 0:02:35.1]}
12... f6 {[%clk 0:02:19.4]} 13. b3 {[%clk 0:02:33]} 13... Ke7 {[%clk 0:02:01.7]}
14. O-O {[%clk 0:02:05.8]} 14... Rhd8 {[%clk 0:01:57.2]} 15. Bh4 {[%clk
0:02:04]} 15... e4 {[%clk 0:01:22.5]} 16. Bxc6 {[%clk 0:01:57.9]} 16... Rxd1
{[%clk 0:01:04.6]} 17. Rxd1 {[%clk 0:01:57.3]} 17... bxc6 {[%clk 0:01:04.6]} 18.
Ne5 {[%clk 0:01:56.3]} 18... c5 {[%clk 0:00:58.4]} 19. Nc6+ {[%clk 0:01:46.7]}
19... Ke8 {[%clk 0:00:57.9]} 20. Bg3 {[%clk 0:01:44.9]} 20... a5 {[%clk
0:00:40.4]} 21. Bxc7 {[%clk 0:01:36.9]} 1-0

[Event "*** Titled Tuesday Blitz"]
[Site "Chess.com"]
[Date "2020.12.01"]
[Round "2"]
[White "LuckSlayeer"]
[Black "ChessWarrior7197"]
[Result "0-1"]
[WhiteElo "2575"]
[BlackElo "2985"]
[TimeControl "180+1"]
[EndTime "10:15:48 PST"]
[Termination "ChessWarrior7197 won on time"]

1. Nf3 {[%clk 0:03:00.7]} 1... d5 {[%clk 0:02:58.5]} 2. g3 {[%clk 0:03:00.4]}
2... Nd7 {[%clk 0:02:58.8]} 3. d4 {[%clk 0:02:59.2]} 3... Nb6 {[%clk 0:02:58]}
4. Bg2 {[%clk 0:02:59]} 4... Bf5 {[%clk 0:02:58.5]} 5. O-O {[%clk 0:02:53.3]}
5... e6 {[%clk 0:02:58.8]} 6. b3 {[%clk 0:02:43.2]} 6... Be7 {[%clk 0:02:57.8]}
7. Ne5 {[%clk 0:02:26]} 7... Nf6 {[%clk 0:02:57.2]} 8. c4 {[%clk 0:02:25.4]}
8... c6 {[%clk 0:02:57.1]} 9. Nc3 {[%clk 0:02:23]} 9... O-O {[%clk 0:02:57.6]}
10. Bf4 {[%clk 0:02:18.7]} 10... Nbd7 {[%clk 0:02:55.1]} 11. Qd2 {[%clk
0:02:12.8]} 11... h6 {[%clk 0:02:50.6]} 12. Nxd7 {[%clk 0:02:09.9]} 12... Qxd7
{[%clk 0:02:51.5]} 13. Be5 {[%clk 0:02:04.4]} 13... Rfd8 {[%clk 0:02:51.1]} 14.
c5 {[%clk 0:01:51.9]} 14... Qe8 {[%clk 0:02:45.1]} 15. Bxf6 {[%clk 0:01:45.4]}
15... Bxf6 {[%clk 0:02:45.2]} 16. f4 {[%clk 0:01:46.1]} 16... b6 {[%clk
0:02:40.8]} 17. b4 {[%clk 0:01:44.8]} 17... a5 {[%clk 0:02:40.9]} 18. a3 {[%clk
0:01:45.1]} 18... Rdb8 {[%clk 0:02:41.3]} 19. e3 {[%clk 0:01:39.9]} 19... bxc5
{[%clk 0:02:40]} 20. bxc5 {[%clk 0:01:38.1]} 20... Rb3 {[%clk 0:02:40.4]} 21.
Bf3 {[%clk 0:01:32.6]} 21... Rab8 {[%clk 0:02:39.9]} 22. Ra2 {[%clk 0:01:25.2]}
22... Qc8 {[%clk 0:02:34.5]} 23. Bd1 {[%clk 0:01:21.3]} 23... R3b7 {[%clk
0:02:29.8]} 24. Be2 {[%clk 0:01:16.6]} 24... Qc7 {[%clk 0:02:26.3]} 25. Na4
{[%clk 0:01:13]} 25... Bd8 {[%clk 0:02:20.2]} 26. Ba6 {[%clk 0:00:56.3]} 26...
Rb3 {[%clk 0:02:17]} 27. Rc1 {[%clk 0:00:32.7]} 27... f6 {[%clk 0:02:00]} 28.
Be2 {[%clk 0:00:18.2]} 28... e5 {[%clk 0:01:59.6]} 29. Bd1 {[%clk 0:00:18.4]}
29... R3b7 {[%clk 0:01:59.5]} 30. Nb6 {[%clk 0:00:14.5]} 30... Qe7 {[%clk
0:01:59.7]} 31. Rb2 {[%clk 0:00:05.1]} 31... Bxb6 {[%clk 0:01:58.7]} 32. cxb6
{[%clk 0:00:05.3]} 32... Rxb6 {[%clk 0:01:59.6]} 33. Rxb6 {[%clk 0:00:05.3]}
33... Rxb6 {[%clk 0:02:00.5]} 34. Qxa5 {[%clk 0:00:05.9]} 34... exd4 {[%clk
0:02:01.1]} 0-1

[Event "*** Titled Tuesday Blitz"]
[Site "Chess.com"]
[Date "2020.12.01"]
[Round "2"]
[White "redbaron8888"]
[Black "SantoBlue"]
[Result "0-1"]
[WhiteElo "2550"]
[BlackElo "2886"]
[TimeControl "180+1"]
[EndTime "10:15:50 PST"]
[Termination "SantoBlue won by checkmate"]

1. e4 {[%clk 0:02:58.3]} 1... e5 {[%clk 0:02:58]} 2. Nf3 {[%clk 0:02:58]} 2...
Nc6 {[%clk 0:02:57.9]} 3. Bb5 {[%clk 0:02:57.6]} 3... Nf6 {[%clk 0:02:57.9]} 4.
O-O {[%clk 0:02:56.5]} 4... Nxe4 {[%clk 0:02:57.8]} 5. d4 {[%clk 0:02:56.6]}
5... Nd6 {[%clk 0:02:57.9]} 6. dxe5 {[%clk 0:02:55.1]} 6... Nxb5 {[%clk
0:02:57.9]} 7. a4 {[%clk 0:02:54.4]} 7... Nbd4 {[%clk 0:02:58.1]} 8. Nxd4 {[%clk
0:02:54.5]} 8... d5 {[%clk 0:02:56.5]} 9. Nc3 {[%clk 0:02:44]} 9... Nxd4 {[%clk
0:02:53.3]} 10. Qxd4 {[%clk 0:02:44.9]} 10... c6 {[%clk 0:02:53.9]} 11. f4
{[%clk 0:02:33.8]} 11... Bf5 {[%clk 0:02:52.7]} 12. Kh1 {[%clk 0:02:16.9]} 12...
Qb6 {[%clk 0:02:49.3]} 13. Qd1 {[%clk 0:02:09.5]} 13... Bb4 {[%clk 0:02:42.5]}
14. Ne2 {[%clk 0:02:03.7]} 14... h5 {[%clk 0:02:39.9]} 15. c3 {[%clk 0:01:54.3]}
15... Be7 {[%clk 0:02:39.8]} 16. a5 {[%clk 0:01:48.7]} 16... Qa6 {[%clk
0:02:36.4]} 17. h3 {[%clk 0:01:37.5]} 17... h4 {[%clk 0:02:35.1]} 18. Nd4 {[%clk
0:01:34.6]} 18... Be4 {[%clk 0:02:35.4]} 19. Be3 {[%clk 0:01:22.2]} 19... c5
{[%clk 0:02:30.9]} 20. Nb3 {[%clk 0:01:15.9]} 20... Qg6 {[%clk 0:02:26.7]} 21.
Qd2 {[%clk 0:01:04.1]} 21... Rc8 {[%clk 0:02:21.7]} 22. f5 {[%clk 0:00:46.4]}
22... Qg3 {[%clk 0:02:16.1]} 23. f6 {[%clk 0:00:28.1]} 23... gxf6 {[%clk
0:02:13.1]} 24. exf6 {[%clk 0:00:26.5]} 24... Rg8 {[%clk 0:02:03.7]} 25. Rf2
{[%clk 0:00:20.5]} 25... Bd6 {[%clk 0:02:00.3]} 26. Kg1 {[%clk 0:00:13.1]} 26...
Qxh3 {[%clk 0:01:47.4]} 27. Re1 {[%clk 0:00:09.2]} 27... Qh2+ {[%clk 0:01:40]}
28. Kf1 {[%clk 0:00:09.1]} 28... c4 {[%clk 0:01:39.8]} 29. Nd4 {[%clk
0:00:07.9]} 29... Bd3+ {[%clk 0:01:39.4]} 30. Rfe2 {[%clk 0:00:05.3]} 30...
Qxg2# {[%clk 0:01:38.2]} 0-1

[Event "*** Titled Tuesday Blitz"]
[Site "Chess.com"]
[Date "2020.12.01"]
[Round "2"]
[White "onetowin"]
[Black "Ladislav1969"]
[Result "0-1"]
[WhiteElo "2008"]
[BlackElo "2351"]
[TimeControl "180+1"]
[EndTime "10:15:50 PST"]
[Termination "Ladislav1969 won by resignation"]

1. d4 {[%clk 0:03:00.2]} 1... Nf6 {[%clk 0:02:59.6]} 2. Nf3 {[%clk 0:02:59.9]}
2... g6 {[%clk 0:03:00.5]} 3. g3 {[%clk 0:02:59.4]} 3... Bg7 {[%clk 0:03:00.9]}
4. Bg2 {[%clk 0:03:00]} 4... d5 {[%clk 0:03:01.4]} 5. O-O {[%clk 0:02:59.9]}
5... O-O {[%clk 0:03:01.9]} 6. c4 {[%clk 0:02:59.1]} 6... dxc4 {[%clk
0:03:02.1]} 7. Na3 {[%clk 0:02:46.8]} 7... c3 {[%clk 0:03:01.1]} 8. bxc3 {[%clk
0:02:45.7]} 8... c5 {[%clk 0:03:01.3]} 9. Bf4 {[%clk 0:02:28.7]} 9... Nd5 {[%clk
0:02:54.5]} 10. Bd2 {[%clk 0:02:24.4]} 10... Nc6 {[%clk 0:02:50.3]} 11. e4
{[%clk 0:02:20]} 11... Nc7 {[%clk 0:02:36.3]} 12. Be3 {[%clk 0:02:14.2]} 12...
cxd4 {[%clk 0:02:32.5]} 13. cxd4 {[%clk 0:02:12.3]} 13... Bg4 {[%clk 0:02:31.1]}
14. Nc2 {[%clk 0:01:56.1]} 14... Nb5 {[%clk 0:02:21]} 15. e5 {[%clk 0:01:26.6]}
15... Nc3 {[%clk 0:02:01.2]} 16. Qd3 {[%clk 0:01:20]} 16... Nd5 {[%clk
0:01:58.4]} 17. Rfd1 {[%clk 0:01:06.6]} 17... Rc8 {[%clk 0:01:55.9]} 18. h3
{[%clk 0:01:05.8]} 18... Bf5 {[%clk 0:01:55]} 19. Qd2 {[%clk 0:01:01.7]} 19...
Bxc2 {[%clk 0:01:53.7]} 20. Qxc2 {[%clk 0:00:58.4]} 20... Nxe5 {[%clk
0:01:52.8]} 21. Qe4 {[%clk 0:00:55.3]} 21... Nxf3+ {[%clk 0:01:48.6]} 22. Bxf3
{[%clk 0:00:56.2]} 22... Nc3 {[%clk 0:01:46.5]} 23. Qxb7 {[%clk 0:00:52.7]}
23... Nxd1 {[%clk 0:01:45]} 24. Rxd1 {[%clk 0:00:53.5]} 24... e6 {[%clk
0:01:20.9]} 25. d5 {[%clk 0:00:42.4]} 25... exd5 {[%clk 0:01:14.3]} 26. Rxd5
{[%clk 0:00:43.3]} 26... Qf6 {[%clk 0:01:11]} 27. Rd7 {[%clk 0:00:38]} 27... Rb8
{[%clk 0:01:08.9]} 28. Qxa7 {[%clk 0:00:35.9]} 28... Qxf3 {[%clk 0:01:07.4]} 0-1

[Event "*** Titled Tuesday Blitz"]
[Site "Chess.com"]
[Date "2020.12.01"]
[Round "2"]
[White "chessmadara"]
[Black "Aleksandar-Topalov"]
[Result "0-1"]
[WhiteElo "2195"]
[BlackElo "2414"]
[TimeControl "180+1"]
[EndTime "10:15:52 PST"]
[Termination "Aleksandar-Topalov won by checkmate"]

1. e4 {[%clk 0:03:00.6]} 1... e6 {[%clk 0:02:58.4]} 2. d4 {[%clk 0:02:59.7]}
2... d5 {[%clk 0:02:58.2]} 3. Nc3 {[%clk 0:02:58.6]} 3... Bb4 {[%clk 0:02:57.7]}
4. e5 {[%clk 0:02:57.1]} 4... Qd7 {[%clk 0:02:57.7]} 5. a3 {[%clk 0:02:31]} 5...
Bxc3+ {[%clk 0:02:56.7]} 6. bxc3 {[%clk 0:02:31.9]} 6... b6 {[%clk 0:02:57.1]}
7. Qg4 {[%clk 0:02:28.7]} 7... f5 {[%clk 0:02:56.9]} 8. exf6 {[%clk 0:02:26.8]}
8... Nxf6 {[%clk 0:02:56.4]} 9. Qh4 {[%clk 0:02:21.4]} 9... Ba6 {[%clk
0:02:56.4]} 10. Bxa6 {[%clk 0:02:20.7]} 10... Nxa6 {[%clk 0:02:57.3]} 11. Bg5
{[%clk 0:02:20.7]} 11... O-O {[%clk 0:02:57.1]} 12. Bxf6 {[%clk 0:02:13.6]}
12... Rxf6 {[%clk 0:02:56.6]} 13. Nf3 {[%clk 0:02:14.1]} 13... Nb8 {[%clk
0:02:56.7]} 14. O-O {[%clk 0:02:13.2]} 14... Nc6 {[%clk 0:02:56.7]} 15. Rae1
{[%clk 0:02:09.9]} 15... Raf8 {[%clk 0:02:56.4]} 16. Qh3 {[%clk 0:02:03.2]}
16... h6 {[%clk 0:02:47.5]} 17. Ne5 {[%clk 0:01:59.1]} 17... Nxe5 {[%clk
0:02:46.9]} 18. Rxe5 {[%clk 0:02:00]} 18... Rf5 {[%clk 0:02:40.7]} 19. Qe3
{[%clk 0:01:55.9]} 19... Rxe5 {[%clk 0:02:38.2]} 20. Qxe5 {[%clk 0:01:56.8]}
20... Rf6 {[%clk 0:02:38]} 21. f4 {[%clk 0:01:52.8]} 21... Qc6 {[%clk
0:02:29.7]} 22. Rf3 {[%clk 0:01:50.8]} 22... Qb5 {[%clk 0:02:23.2]} 23. Qxc7
{[%clk 0:01:42.2]} 23... Qb1+ {[%clk 0:02:23]} 24. Rf1 {[%clk 0:01:41]} 24...
Qxc2 {[%clk 0:02:22.6]} 25. Qxa7 {[%clk 0:01:13.9]} 25... Qxc3 {[%clk
0:02:20.2]} 26. Qxb6 {[%clk 0:01:13.7]} 26... Qxa3 {[%clk 0:02:20.4]} 27. Re1
{[%clk 0:01:03.5]} 27... Qc3 {[%clk 0:02:12.5]} 28. Rxe6 {[%clk 0:00:21.2]}
28... Qc1+ {[%clk 0:02:08.1]} 29. Kf2 {[%clk 0:00:20.9]} 29... Qxf4+ {[%clk
0:02:08.1]} 30. Ke2 {[%clk 0:00:20.3]} 30... Qf1+ {[%clk 0:02:05.5]} 31. Kd2
{[%clk 0:00:19.7]} 31... Rf2+ {[%clk 0:02:05.3]} 32. Kc3 {[%clk 0:00:18.7]}
32... Qc1+ {[%clk 0:02:05.1]} 33. Kd3 {[%clk 0:00:16.1]} 33... Qc2+ {[%clk
0:01:40.7]} 34. Ke3 {[%clk 0:00:15]} 34... Qe2# {[%clk 0:01:40.8]} 0-1

[Event "*** Titled Tuesday Blitz"]
[Site "Chess.com"]
[Date "2020.12.01"]
[Round "2"]
[White "GM_LOADING"]
[Black "ElGasanov"]
[Result "0-1"]
[WhiteElo "2483"]
[BlackElo "2738"]
[TimeControl "180+1"]
[EndTime "10:15:53 PST"]
[Termination "ElGasanov won by resignation"]

1. e4 {[%clk 0:02:59.6]} 1... c5 {[%clk 0:02:57.6]} 2. Nf3 {[%clk 0:02:59.5]}
2... Nc6 {[%clk 0:02:58.2]} 3. d4 {[%clk 0:02:59.8]} 3... cxd4 {[%clk
0:02:58.8]} 4. Nxd4 {[%clk 0:03:00.7]} 4... Nf6 {[%clk 0:02:59.4]} 5. Nc3 {[%clk
0:03:00.7]} 5... g6 {[%clk 0:03:00.1]} 6. Nxc6 {[%clk 0:02:59.1]} 6... dxc6
{[%clk 0:03:01]} 7. e5 {[%clk 0:02:59.6]} 7... Qxd1+ {[%clk 0:03:00.1]} 8. Kxd1
{[%clk 0:02:59.4]} 8... Ng4 {[%clk 0:02:58.5]} 9. Ke1 {[%clk 0:02:44.4]} 9...
Nxe5 {[%clk 0:02:55.3]} 10. Be3 {[%clk 0:02:45]} 10... Bf5 {[%clk 0:02:50.9]}
11. Rc1 {[%clk 0:02:41.3]} 11... Ng4 {[%clk 0:02:42.9]} 12. Bf4 {[%clk
0:02:38.2]} 12... e5 {[%clk 0:02:42.2]} 13. Bg3 {[%clk 0:02:38.4]} 13... Bh6
{[%clk 0:02:41.6]} 14. Ra1 {[%clk 0:02:34.8]} 14... O-O-O {[%clk 0:02:31.4]} 15.
Be2 {[%clk 0:02:32.9]} 15... Rhe8 {[%clk 0:02:12.1]} 16. Bh4 {[%clk 0:02:27.9]}
16... g5 {[%clk 0:01:50.5]} 17. Bg3 {[%clk 0:02:26.5]} 17... Nf6 {[%clk
0:01:50.6]} 18. Rd1 {[%clk 0:02:07.8]} 18... Bxc2 {[%clk 0:01:45.9]} 19. Rxd8+
{[%clk 0:02:07.1]} 19... Kxd8 {[%clk 0:01:43.5]} 20. Bc4 {[%clk 0:02:06.6]}
20... Bg6 {[%clk 0:01:40.6]} 21. Ke2 {[%clk 0:01:53.8]} 21... Kc7 {[%clk
0:01:39.4]} 22. Re1 {[%clk 0:01:36.9]} 22... Nh5 {[%clk 0:01:32.9]} 23. f3
{[%clk 0:01:29.1]} 23... Nf4+ {[%clk 0:01:29.1]} 24. Kf2 {[%clk 0:01:22]} 24...
f5 {[%clk 0:01:22.4]} 25. h4 {[%clk 0:01:09.6]} 25... b5 {[%clk 0:01:01.3]} 26.
Bf1 {[%clk 0:01:08.8]} 26... Bf8 {[%clk 0:00:59.2]} 27. Bh2 {[%clk 0:00:53]}
27... Bc5+ {[%clk 0:00:54.5]} 28. Kg3 {[%clk 0:00:53.2]} 28... gxh4+ {[%clk
0:00:52.5]} 0-1

[Event "*** Titled Tuesday Blitz"]
[Site "Chess.com"]
[Date "2020.12.01"]
[Round "2"]
[White "BigAl"]
[Black "FMalexhdez"]
[Result "1-0"]
[WhiteElo "2459"]
[BlackElo "2266"]
[TimeControl "180+1"]
[EndTime "10:15:53 PST"]
[Termination "BigAl won by resignation"]

1. Nf3 {[%clk 0:03:00.2]} 1... c5 {[%clk 0:02:58.3]} 2. g3 {[%clk 0:03:00.2]}
2... Nc6 {[%clk 0:02:58.3]} 3. Bg2 {[%clk 0:03:00.8]} 3... g6 {[%clk 0:02:58.4]}
4. O-O {[%clk 0:03:01.5]} 4... Bg7 {[%clk 0:02:58.5]} 5. d3 {[%clk 0:03:02.1]}
5... d5 {[%clk 0:02:56.3]} 6. Nbd2 {[%clk 0:03:01.5]} 6... e5 {[%clk 0:02:55.8]}
7. e4 {[%clk 0:02:54.3]} 7... Nge7 {[%clk 0:02:54.8]} 8. c3 {[%clk 0:02:45.3]}
8... O-O {[%clk 0:02:54.2]} 9. exd5 {[%clk 0:02:43]} 9... Nxd5 {[%clk
0:02:53.4]} 10. Re1 {[%clk 0:02:43.5]} 10... Re8 {[%clk 0:02:49.2]} 11. Nc4
{[%clk 0:02:42.3]} 11... b5 {[%clk 0:02:33.8]} 12. Ne3 {[%clk 0:02:40.1]} 12...
Nxe3 {[%clk 0:02:32.7]} 13. Bxe3 {[%clk 0:02:39.8]} 13... Qe7 {[%clk 0:01:48.8]}
14. Nd2 {[%clk 0:02:27.2]} 14... Bb7 {[%clk 0:01:43.8]} 15. Ne4 {[%clk
0:02:14.3]} 15... c4 {[%clk 0:01:36.6]} 16. Bc5 {[%clk 0:02:10.9]} 16... Qc7
{[%clk 0:01:29.1]} 17. dxc4 {[%clk 0:02:06]} 17... bxc4 {[%clk 0:01:27.5]} 18.
Qd6 {[%clk 0:01:51.5]} 18... Rec8 {[%clk 0:00:57.4]} 19. Rad1 {[%clk 0:01:23.4]}
19... Bf8 {[%clk 0:00:42.8]} 20. Qf6 {[%clk 0:01:10.1]} 20... Bxc5 {[%clk
0:00:20.3]} 21. Nxc5 {[%clk 0:01:09.5]} 21... Rd8 {[%clk 0:00:15.2]} 22. Nxb7
{[%clk 0:01:07.1]} 1-0

[Event "*** Titled Tuesday Blitz"]
[Site "Chess.com"]
[Date "2020.12.01"]
[Round "2"]
[White "Joel1285"]
[Black "YIYUKI"]
[Result "0-1"]
[WhiteElo "1830"]
[BlackElo "2332"]
[TimeControl "180+1"]
[EndTime "10:15:53 PST"]
[Termination "YIYUKI won on time"]

1. d4 {[%clk 0:03:00.9]} 1... d5 {[%clk 0:02:59.1]} 2. c4 {[%clk 0:03:00.3]}
2... dxc4 {[%clk 0:02:59.1]} 3. e4 {[%clk 0:03:00]} 3... Nf6 {[%clk 0:02:58.3]}
4. Nc3 {[%clk 0:02:59.1]} 4... e5 {[%clk 0:02:57.5]} 5. d5 {[%clk 0:02:59.3]}
5... c6 {[%clk 0:02:56.9]} 6. Bxc4 {[%clk 0:02:59]} 6... Bc5 {[%clk 0:02:53.3]}
7. Nf3 {[%clk 0:02:50.3]} 7... O-O {[%clk 0:02:52.4]} 8. O-O {[%clk 0:02:50.2]}
8... cxd5 {[%clk 0:02:52.5]} 9. exd5 {[%clk 0:02:48.5]} 9... e4 {[%clk
0:02:48.1]} 10. Nd4 {[%clk 0:02:43.2]} 10... Nbd7 {[%clk 0:02:43.9]} 11. Nb3
{[%clk 0:02:02.4]} 11... Bd6 {[%clk 0:02:42.5]} 12. Nb5 {[%clk 0:01:51.4]} 12...
Be5 {[%clk 0:02:33.6]} 13. d6 {[%clk 0:01:03.5]} 13... a6 {[%clk 0:02:31.9]} 14.
Nc7 {[%clk 0:00:55.3]} 14... Rb8 {[%clk 0:02:30.9]} 15. Be3 {[%clk 0:00:55.3]}
15... b5 {[%clk 0:02:28.2]} 16. Be2 {[%clk 0:00:42.9]} 16... Nb6 {[%clk
0:02:16.2]} 17. Bc5 {[%clk 0:00:19.3]} 17... Bb7 {[%clk 0:01:41]} 18. Bxb6
{[%clk 0:00:16.1]} 18... Bxb2 {[%clk 0:01:37.7]} 19. Rb1 {[%clk 0:00:12.9]}
19... Be5 {[%clk 0:01:36.5]} 20. f4 {[%clk 0:00:08]} 20... exf3 {[%clk 0:01:36]}
21. Bxf3 {[%clk 0:00:08.3]} 21... Bxd6 {[%clk 0:01:33.5]} 22. Bxb7 {[%clk
0:00:06]} 22... Rxb7 {[%clk 0:01:33.6]} 23. Nd5 {[%clk 0:00:01.6]} 23... Rxb6
{[%clk 0:01:33.1]} 24. Nxb6 {[%clk 0:00:02.4]} 24... Qxb6+ {[%clk 0:01:33.1]}
25. Kh1 {[%clk 0:00:03]} 25... Bb8 {[%clk 0:01:28.1]} 0-1

[Event "*** Titled Tuesday Blitz"]
[Site "Chess.com"]
[Date "2020.12.01"]
[Round "2"]
[White "emperor87"]
[Black "aleksey1203borisovi4"]
[Result "1-0"]
[WhiteElo "2734"]
[BlackElo "2483"]
[TimeControl "180+1"]
[EndTime "10:15:56 PST"]
[Termination "emperor87 won by resignation"]

1. e4 {[%clk 0:02:58.6]} 1... g6 {[%clk 0:03:00.9]} 2. d4 {[%clk 0:02:55.7]}
2... Bg7 {[%clk 0:03:00.8]} 3. Nc3 {[%clk 0:02:55.8]} 3... d6 {[%clk 0:03:00.8]}
4. Nf3 {[%clk 0:02:55.2]} 4... Nc6 {[%clk 0:03:00.4]} 5. h3 {[%clk 0:02:54.3]}
5... e5 {[%clk 0:02:58.5]} 6. Be3 {[%clk 0:02:53.2]} 6... exd4 {[%clk
0:02:54.7]} 7. Nxd4 {[%clk 0:02:52.9]} 7... Nge7 {[%clk 0:02:55.6]} 8. Bc4
{[%clk 0:02:47.2]} 8... O-O {[%clk 0:02:52.2]} 9. O-O {[%clk 0:02:46.7]} 9...
Nxd4 {[%clk 0:02:40.9]} 10. Bxd4 {[%clk 0:02:46]} 10... Be6 {[%clk 0:02:40.3]}
11. Bb3 {[%clk 0:02:37.1]} 11... Bxd4 {[%clk 0:02:31.7]} 12. Qxd4 {[%clk
0:02:36.2]} 12... Nc6 {[%clk 0:02:32.6]} 13. Qd2 {[%clk 0:02:31.8]} 13... Qf6
{[%clk 0:02:27.9]} 14. Rad1 {[%clk 0:02:25.9]} 14... Bxb3 {[%clk 0:02:25.1]} 15.
axb3 {[%clk 0:02:24.7]} 15... Ne7 {[%clk 0:01:54.1]} 16. f4 {[%clk 0:02:21.3]}
16... a6 {[%clk 0:01:51.9]} 17. g4 {[%clk 0:02:02.1]} 17... Rae8 {[%clk
0:01:49.3]} 18. g5 {[%clk 0:02:00.6]} 18... Qg7 {[%clk 0:01:48.7]} 19. Qd4
{[%clk 0:01:56.2]} 19... f6 {[%clk 0:01:46.1]} 20. h4 {[%clk 0:01:55.9]} 20...
f5 {[%clk 0:01:39]} 21. Qc4+ {[%clk 0:01:48.5]} 21... Kh8 {[%clk 0:01:32.8]} 22.
Qxc7 {[%clk 0:01:46]} 22... fxe4 {[%clk 0:01:31.5]} 23. Nxe4 {[%clk 0:01:45.2]}
23... Qxb2 {[%clk 0:01:12.8]} 24. Nxd6 {[%clk 0:01:38.3]} 24... Rd8 {[%clk
0:00:07.7]} 25. Qxe7 {[%clk 0:01:35.7]} 25... Qc3 {[%clk 0:00:05.2]} 26. Qe5+
{[%clk 0:01:34.9]} 26... Qxe5 {[%clk 0:00:04.7]} 27. fxe5 {[%clk 0:01:35.8]} 1-0